Cogmind - Beta 12 @@@ ROGUE MODE // 2023.03.05 @ 17:50:34 Player: Bunch Result: Destroyed by L-31 Rogue with Katana Performance ------------- Evolutions (2) 1000 Regions Visited (5) 1000 Robots Destroyed (23) 115 Value Destroyed (716) 716 Prototype IDs (0) 0 Alien Tech Used (0) 0 Bonus (300) 300 TOTAL SCORE: 3131 Bonus ------- Aligned with FarCom 300 Cogmind --------- Core Integrity 0/550 Matter 300/300 Energy 100/100 System Corruption 6% Temperature Cool (0) Movement Core (50) Location -8/Materials Parts ------- > --- POWER (3) -------- (None) > --- PROPULSION (2) --- (None) > --- UTILITY (3) ------ (None) > --- WEAPON (3) ------- (None) > --- INVENTORY (5) ---- (None) Peak State ------------ > --- POWER ------------ Ion Engine Improved Ion Engine Light Nuclear Core > --- PROPULSION ------- Wheel Compact Wheel > --- UTILITY ---------- Humpback Visual Processing Unit > --- WEAPON ----------- Gatling Laser Light Assault Rifle Proton Missile Launcher > --- INVENTORY -------- Armored Treads Light Assault Rifle [Rating: 21] Favorites ----------- Power Light Ion Engine Engine Light Ion Engine Power Core Light Nuclear Core Propulsion Compact Wheel Treads Armored Treads Wheel Compact Wheel Hover Unit Gravmag System Utility Humpback Storage Humpback Processor Visual Processing Unit Weapon Light Assault Rifle Energy Gun Gatling Laser Ballistic Gun Light Assault Rifle Launcher Rocket Launcher Build | -11 -10 -10 -10 -9 -8 ------- Run | Jun Mat Min Exi Min Mat Slots Evolved 4 | . . . . . 4 Power 2 | . . . . . 2 Propulsion . | . . . . . . Utility 1 | . . . . . 1 Weapon 1 | . . . . . 1 Parts Attached 22 | 6 . . 1 6 9 Power 4 | 1 . . . 1 2 Engine 3 | 1 . . . 1 1 Core 1 | . . . . . 1 Reactor . | . . . . . . Propulsion 7 | 2 . . . 3 2 Treads 1 | . . . . . 1 Leg . | . . . . . . Wheel 5 | 2 . . . 2 1 Hover 1 | . . . . 1 . Flight . | . . . . . . Utility 3 | 1 . . 1 . 1 Device . | . . . . . . Storage 2 | 1 . . 1 . . Processor 1 | . . . . . 1 Hackware . | . . . . . . Protection . | . . . . . . Artifact . | . . . . . . Weapon 8 | 2 . . . 2 4 Energy Gun 1 | . . . . 1 . Energy Cannon . | . . . . . . Ballistic Gun 5 | 2 . . . . 3 Ballistic Cannon . | . . . . . . Launcher 2 | . . . . 1 1 Special Weapon . | . . . . . . Impact Weapon . | . . . . . . Slashing Weapon . | . . . . . . Piercing Weapon . | . . . . . . Special Melee Weapon . | . . . . . . Unidentified Prototypes . | . . . . . . Parts Lost 13 | . . . . . 13 Power 3 | . . . . . 3 Propulsion 3 | . . . . . 3 Utility 2 | . . . . . 2 Weapon 5 | . . . . . 5 Highest Loss Streak 6 | . . . . . 6 To Critical Strikes 1 | . . . . . 1 Average Slot Usage (%) 81 | . 85 85 85 84 66 Engine 13 | . 14 14 14 14 12 Wheel 24 | . 28 28 28 27 11 Storage 12 | . 14 14 14 14 8 Processor 1 | . . . . . 8 Energy Gun 4 | . . . . 9 8 Ballistic Gun 20 | . 28 28 28 17 8 Launcher 1 | . . . . . 6 Naked Turns 7 | . . . . . 7 Heaviest Build 224 | 10 10 10 205 213 224 Greatest Support 32 | 32 32 32 32 32 32 Greatest Overweight (x) 13 | . . . 6 6 13 Average Overweight (x) 4 | . . . 4 6 8 Largest Inventory Capacity 35 | 8 8 8 35 35 35 Average Capacity 30 | 6 8 8 30 35 34 Most Carried 5 | 2 . . 2 5 4 Average Carried 1 | . . . . 2 2 Final Capacity 35 | 8 8 8 35 35 5 Final Carried 4 | . . . . 4 . Class Distribution -------------------- 82% | Hauler-Mutant 14% | Mutant Dominant Class ---------------- Mutant | -10/Materials Mutant | -10/Mines Hauler-Mutant | -10/Exiles Hauler-Mutant | -9/Mines Hauler-Mutant | -8/Materials Resources | -11 -10 -10 -10 -9 -8 ----------- Run | Jun Mat Min Exi Min Mat Matter Collected 479 | 219 26 23 . 105 106 Remotely . | . . . . . . Salvage Created 733 | . 26 . . 110 597 Parts 42 | . 3 . . 4 35 Haulers Intercepted . | . . . . . . Recyclers Shooed . | . . . . . . Parts Field Recycled . | . . . . . . Retrieved Matter . | . . . . . . Parts Self-Destructed . | . . . . . . Prevented . | . . . . . . Kills | -11 -10 -10 -10 -9 -8 ------- Run | Jun Mat Min Exi Min Mat Combat Hostiles Destroyed 16 | . 2 . . 6 8 Guns 12 | . 2 . . 5 5 AOE 4 | . . . . 1 3 Classes Destroyed 9 | . 1 . . 2 6 Worker 1 | . . . . . 1 Builder 3 | . . . . . 3 Recycler 1 | . . . . . 1 Watcher 2 | . . . . . 2 Swarmer 5 | . 2 . . 3 . Grunt 7 | . . . . 2 5 Brawler 1 | . . . . 1 . Sentry 2 | . . . . . 2 Hunter 1 | . . . . . 1 Best Kill Streak 8 | . 2 . . 3 8 Combat Bots Only 3 | . 2 . . 3 3 Max Kills in Single Turn 3 | . 1 . . 1 3 Gunslinging . | . . . . . . Exploded 2 | . . . . 1 2 Melee . | . . . . . . Uniques/NPCs Destroyed . | . . . . . . Combat | -11 -10 -10 -10 -9 -8 -------- Run | Jun Mat Min Exi Min Mat Damage Taken 1786 | . 61 32 . 135 1558 Core 689 | . 48 . . 66 575 Absorbed by Shields . | . . . . . . Core Remaining (%) 77 | 100 . . . 54 . Volleys Fired 48 | . 4 4 . 7 33 Largest 3 | . 2 2 . 2 3 Hottest 139 | . 40 40 . 113 139 Shots Fired 100 | . 8 8 . 13 71 Gun 92 | . 8 8 . 10 66 Cannon . | . . . . . . Launcher 8 | . . . . 3 5 Special . | . . . . . . Kinetic 52 | . 8 8 . 3 33 Thermal 40 | . . . . 7 33 Explosive 3 | . . . . 3 . Electromagnetic 5 | . . . . . 5 Robot Hit Streak 12 | . 2 3 . 5 12 Robot Miss Streak 6 | . 1 6 . 3 5 Penetration Max . | . . . . . . Secondary Targets 1 | . 1 . . . . Max Gunslinging Chain 1 | . 1 . . . . Shots Hit Robots 66 | . 4 2 . 10 50 Core Hits 47 | . 3 1 . 9 34 Critical Kills . | . . . . . . Critical Parts Destroyed . | . . . . . . Critical Strikes . | . . . . . . Melee Attacks . | . . . . . . Impact . | . . . . . . Slashing . | . . . . . . Piercing . | . . . . . . Sneak Attacks . | . . . . . . Combat Hostiles . | . . . . . . Follow-up Attacks . | . . . . . . Damage Inflicted 1694 | . 32 35 . 321 1306 Guns 1023 | . 32 35 . 102 854 Cannons . | . . . . . . Explosions 671 | . . . . 219 452 Melee . | . . . . . . Ramming . | . . . . . . Kinetic 216 | . 32 35 . 15 134 Thermal 896 | . . . . 87 809 Explosive 219 | . . . . 219 . Electromagnetic 363 | . . . . . 363 Impact . | . . . . . . Slashing . | . . . . . . Piercing . | . . . . . . Highest Corruption 6 | . . . . . 6 Average Corruption 5 | . . . . . 5 Corruption Purged . | . . . . . . Corruption Blocked . | . . . . . . Overload Shots . | . . . . . . Overflow Damage 1 | . . . . . 1 Projectiles . | . . . . . . Explosions 1 | . . . . . 1 Melee . | . . . . . . Knockbacks . | . . . . . . Impact . | . . . . . . Kinetic . | . . . . . . Secondary . | . . . . . . Self-Inflicted Damage 22 | . . . . . 22 Shots 2 | . . . . . 2 Rammed . | . . . . . . Targets Rammed . | . . . . . . Kicked . | . . . . . . Crushed . | . . . . . . Highest Temperature 565 | . . 6 . 197 565 Average Temperature 153 | . . 6 . 79 170 Received Heat Transfer 546 | . . 18 . 24 504 Effects 9 | . . . . . 9 Shutdowns 1 | . . . . . 1 Energy Bleed 4 | . . . . . 4 Interference 2 | . . . . . 2 Damage (minor) 2 | . . . . . 2 Siege Activations . | . . . . . . Robots Corrupted . | . . . . . . Combat Hostiles . | . . . . . . Parts Fried 1 | . . . . . 1 Impact Corruptions . | . . . . . . Robots Melted . | . . . . . . Combat Hostiles . | . . . . . . Parts Melted 3 | . . . . 1 2 Heat Transferred 1925 | . . . . 200 1725 Parts Sabotaged . | . . . . . . Parts Stolen . | . . . . . . Parts Stripped . | . . . . . . Power Chain Reactions 1 | . . . . . 1 Missiles Intercepted . | . . . . . . Alert | -11 -10 -10 -10 -9 -8 ------- Run | Jun Mat Min Exi Min Mat Peak Influence 304 | . 65 25 . 88 304 Initial 33 | . . 25 . . 33 Average 55 | . 37 25 . 23 121 Maximum Alert Level 1 | . . . . . 1 Low Security (%) 94 | 100 100 100 . 100 82 Level 1 5 | . . . . . 17 Level 2 . | . . . . . . Level 3 . | . . . . . . Level 4 . | . . . . . . Level 5 . | . . . . . . High Security . | . . . . . . Max Security . | . . . . . . Squads Dispatched 5 | . . . . . 5 Investigation . | . . . . . . Extermination . | . . . . . . Reinforcement 1 | . . . . . 1 Assault 1 | . . . . . 1 Garrison 3 | . . . . . 3 Intercept . | . . . . . . Searches Triggered . | . . . . . . Construction Impeded 1 | . . . . . 1 Haulers Reinforced . | . . . . . . Active Scanning Responses . | . . . . . . Cargo Convoy Interrupts . | . . . . . . Stealth | -11 -10 -10 -10 -9 -8 --------- Run | Jun Mat Min Exi Min Mat Distress Signals 2 | . . . . . 2 Communications Jammed . | . . . . . . Distress Signals . | . . . . . . Times Spotted 32 | . 3 3 . 6 20 Peak Tracking Total 7 | . 3 2 . 3 7 Tactical Retreats 1 | . 1 . . . . Traps | -11 -10 -10 -10 -9 -8 ------- Run | Jun Mat Min Exi Min Mat Traps Triggered 1 | . . . . 1 . Indirectly . | . . . . . . Trap Hack Attempts . | . . . . . . Triggered . | . . . . . . Disarmed . | . . . . . . Reprogrammed . | . . . . . . Reused . | . . . . . . Traps Extracted . | . . . . . . Installed . | . . . . . . Triggered . | . . . . . . Machines | -11 -10 -10 -10 -9 -8 ---------- Run | Jun Mat Min Exi Min Mat Machines Disabled 2 | . . . . . 2 Max in Single Turn 2 | . . . . . 2 Garrison Access 1 | . . . . . 1 Machines Repaired . | . . . . . . Machines Sabotaged . | . . . . . . Overloaded Fab Kills . | . . . . . . Hacking | -11 -10 -10 -10 -9 -8 --------- Run | Jun Mat Min Exi Min Mat Machines Accessed 5 | . . . 3 1 1 Terminals 1 | . . . . . 1 Fabricators . | . . . . . . Repair Stations . | . . . . . . Recycling Units . | . . . . . . Scanalyzers . | . . . . . . Garrison Access . | . . . . . . Total Hacks 28 | . . . 26 1 1 Successful 27 | . . . 26 1 . Failed 1 | . . . . . 1 Catastrophic . | . . . . . . Database Lockouts . | . . . . . . Manual . | . . . . . . Terminals 1 | . . . . . 1 Fabricators . | . . . . . . Repair Stations . | . . . . . . Recycling Units . | . . . . . . Scanalyzers . | . . . . . . Garrison Access . | . . . . . . Terminal Hacks 27 | . . . 26 1 . Record 26 | . . . 26 . . Open Door 1 | . . . . 1 . Fabricator Hacks . | . . . . . . Repair Station Hacks . | . . . . . . Recycling Unit Hacks . | . . . . . . Scanalyzer . | . . . . . . Garrison Access Hacks . | . . . . . . Unauthorized Hacks . | . . . . . . Terminals . | . . . . . . Fabricators . | . . . . . . Repair Stations . | . . . . . . Recycling Units . | . . . . . . Scanalyzers . | . . . . . . Garrison Access . | . . . . . . Data Cores Recovered . | . . . . . . Used . | . . . . . . Hacking Detections 1 | . . . . . 1 Full Trace Events . | . . . . . . Feedback Events . | . . . . . . Feedback Blocked . | . . . . . . Robot Schematics Acquired . | . . . . . . Robots Built . | . . . . . . Authchips . | . . . . . . Time . | . . . . . . Total Robot Build Rating . | . . . . . . Part Schematics Acquired . | . . . . . . Parts Built . | . . . . . . Authchips . | . . . . . . Time . | . . . . . . Total Part Build Rating . | . . . . . . Parts Repaired . | . . . . . . Time . | . . . . . . Parts Recycled . | . . . . . . Recycled Matter . | . . . . . . Retrieved Matter . | . . . . . . Retrieved Components . | . . . . . . Parts Scanalyzed . | . . . . . . Part Schematics Acquired . | . . . . . . Parts Damaged . | . . . . . . Bothacking | -11 -10 -10 -10 -9 -8 ------------ Run | Jun Mat Min Exi Min Mat Used RIF Installer . | . . . . . . Robots Hacked . | . . . . . . Non-combat . | . . . . . . Combat . | . . . . . . Robot Hacks Applied . | . . . . . . Relay Couplers Released 2 | . . . . . 2 Machine Destruction 2 | . . . . . 2 Fabnet Peak Effective % . | . . . . . . Robots Rewired . | . . . . . . Allies Hacked . | . . . . . . Hacks Repelled . | . . . . . . Allies | -11 -10 -10 -10 -9 -8 -------- Run | Jun Mat Min Exi Min Mat Total Allies . | . . . . . . Largest Group . | . . . . . . Highest-Rated Group . | . . . . . . Highest-Rated Ally . | . . . . . . Total Orders . | . . . . . . Ally Attacks . | . . . . . . Total Damage . | . . . . . . Kills . | . . . . . . Allies Corrupted . | . . . . . . Allies Melted . | . . . . . . Intel | -11 -10 -10 -10 -9 -8 ------- Run | Jun Mat Min Exi Min Mat Robot Analysis Total . | . . . . . . Derelict Logs Recovered . | . . . . . . Drone Launches . | . . . . . . Drone Recoveries . | . . . . . . Exploration | -11 -10 -10 -10 -9 -8 ------------- Run | Jun Mat Min Exi Min Mat Turns Passed 3322 | 57 98 91 1384 1054 638 Spaces Moved 1677 | 51 83 57 838 474 174 Core 20 | 20 . . . . . Treads 5 | . . . . . 5 Legs . | . . . . . . Wheels 1652 | 31 83 57 838 474 169 Hover . | . . . . . . Flight . | . . . . . . Fastest Speed 50 | 50 100 100 100 190 190 Average Speed 173 | 80 100 100 164 190 253 Slowest Speed 970 | 100 100 100 190 190 970 Overloaded Moves . | . . . . . . Propulsion Burnouts . | . . . . . . Robots Hopped . | . . . . . . Cave-ins Triggered . | . . . . . . Exploration Rate (%) 36 | 4 20 17 73 87 18 Regions Visited 5 Branch Regions 3 Pre-discovered Areas . | . . . . . . Known Exits Taken . | . . . . . . Unknown Exits Taken 5 | 1 1 1 1 1 . Scrap Searched 4 | . . . . 4 . Spaces Dug . | . . . . . . Terrain Destroyed 32 | . . . . 26 6 Melee . | . . . . . . Projectile . | . . . . . . AOE 32 | . . . . 26 6 Terrain Rammed . | . . . . . . Walls Destroyed . | . . . . . . Machines Disabled . | . . . . . . Actions | -11 -10 -10 -10 -9 -8 --------- Run | Jun Mat Min Exi Min Mat Total 1996 | 66 91 84 840 614 301 Wait 232 | 4 5 24 . 118 81 Move 1672 | 50 82 56 837 473 174 Hop . | . . . . . . Pick Up 17 | 6 . . 1 6 4 Fast Attach . | . . . . . . Attach 17 | 6 . . 1 2 8 Detach 2 | . . . . 2 . Swap 5 | . . . . 4 1 Drop 3 | . . . 1 2 . Fire 48 | . 4 4 . 7 33 Melee . | . . . . . . Ram . | . . . . . . Kick . | . . . . . . Crush . | . . . . . . Escape Stasis . | . . . . . . Rewire . | . . . . . . Trap . | . . . . . . Miscellaneous . | . . . . . . Route ------- -11/Junkyard -10/Materials (discovered 2 exits: [*Mat] / [*Min]) -10/Mines -10/Exiles (discovered 2 exits: *Min x2) -9/Mines (discovered 2 exits: *Mat x2) -8/Materials History --------- Turn | Location | Event 14 | -11/Junkyard | Discovered new exit (range 15) 58 | -11/Junkyard | Entered Materials 103 | -10/Materials | Met 8R-AWN 114 | -10/Materials | Discovered new exit (range 11) 143 | -10/Materials | Discovered new exit (range 12) 156 | -10/Materials | Entered Mines 157 | -10/Mines | Followed 8R-AWN into the Mines 238 | -10/Mines | Discovered new exit (range 5) 247 | -10/Mines | Entered Exiles 266 | -10/Exiles | Discovered new exit (range 15) 288 | -10/Exiles | Welcomed by 8R-AWN 304 | -10/Exiles | Met EX-HEX 306 | -10/Exiles | Build established: Mutant 391 | -10/Exiles | Met EX-DEC 521 | -10/Exiles | Discovered new exit (range 12) 654 | -10/Exiles | Met EX-BIN 777 | -10/Exiles | Aligned with FarCom system 779 | -10/Exiles | Given EX-Vault access code 788 | -10/Exiles | Build established: Hauler-Mutant 1180 | -10/Exiles | Learned about 8R-AWN's background 1631 | -10/Exiles | Entered Mines 1703 | -9/Mines | Discovered new exit (range 9) 1944 | -9/Mines | Met a Derelict who couldn't figure out how to use a Trap Extractor 2398 | -9/Mines | Received a Rocket Launcher from a helpful Derelict 2629 | -9/Mines | Discovered new exit (range 8) 2685 | -9/Mines | Entered Materials 2685 | -8/Materials | Evolved 4 slots: Power x2, Utility x1, Weapon x1 2790 | -8/Materials | Garrison activated, responded to threat 2910 | -8/Materials | Garrison activated, responded to threat 3193 | -8/Materials | Garrison activated, responded to threat 3274 | -8/Materials | Lost 6 parts (3p2n1w) 3314 | -8/Materials | Core integrity fell below 50% 3320 | -8/Materials | Core integrity fell below 20% 3323 | -8/Materials | Destroyed by L-31 Rogue with Katana Last Messages --------------- 03302_ U-05 Engineer lays Concrete. 03303_ U-05 Engineer builds a Wall. 03305_ Gatling Laser destroyed. 03307_ Critical hit (Smash). 03307_ Lgt. Assault Rifle destroyed. 03307_ System corrupted by crushing effect (+5). 03308_ Arm. Treads severed. 03309_ Critical hit (Burn: +37). 03309_ U-05 Engineer builds a Wall. 03310_ Humpback destroyed. 03315_ R-06 Scavenger collects Corrupted Structural Scanner. 03315_ G-47 Trooper suffers critical hit (Burn). 03315_ Critical hit (Burn: +37). 03316_ Visual Processing Unit destroyed. 03316_ System corrupted by crushing effect (+1). 03319_ U-05 Engineer lays Concrete. 03319_ R-06 Scavenger collects Corrupted Terrain Scanner. 03320_ U-05 Engineer lays Concrete. 03322_ R-06 Scavenger collects Corrupted Sml. Storage Unit. 03323_ U-05 Engineer lays Concrete. Map ----- +----------------------------------------------------+ | ?????????????????????????????????????????????????? | | ?????????????????????????????????????????????????? | | ?????????????????????????????????????????????????? | | ?????????????????????????????????????????????????? | | ?????????????????????????????????????????????????? | | ?????????????????????????????????????????????????? | | ?????????????????????????????????????????????????? | | ?????????????????????????????????????????????????? | | ?????????????????????????????????????????????????? | | ?????????????????????????????????????????????????? | | ?????????????????????????????????????????????????? | | ?????????????????????????????????????????????????? | | ?????????????Y??????##########???????????????????? | | ????????????????????# ###########?????????? | | ????????????????????# # #?????????? | | ????????????????????# # #?????????? | | ????????????????????# # """ """ #?????????? | | ????????????????????# # """ """ #?????????? | | ????????????????????# # """ """ #?????????? | | ????????????????????# # """ """ #?????????? | | ????????????????????# ! ! # #?????????? | | ?????????????????????? # #?????????? | | ???????????##+############# # ####+#######???????? | | ?????????? w %w u #???????? | | ?????????? % %! g|l r ! #???????? | | ?????????? =%= i !b@ %%k%*% #???????? | | ?????????????#### =g[%#####+##### #???????? | | ????????????????# !% %=#= # #???????? | | ????????????????# = # ]# #???????? | | ????????????????# " !%[ [# # ########? | | ????????????????# =! [ # # # #? | | ????????????????+ + + # #? | | ????????????????# # # #% !! #? | | ????????????????###" ##### # + !| #? | | ??????????????????#" ????# # # #? | | ??????????????????#""" ????##""T""#### # #? | | ??????????????????#####?????#"""""#??# ########? | | ????????????????????????????#######??# #???????? | | ?????????????????????????????????????# ########? | | ?????????????????????????????????????# # #? | | ???????????????????????????########### #? | | ???????????????????????????# ## # #? | | ???????????????????????????# """## ########? | | ???????????????????????????# """## ##??????? | | ???????????????????????????# """# ######## | | ???????????????????????????# """# | | ???????????????????????????# + | | ???????????????????????????# "Y" # | | ???????????????????????????# """ # ###+#### | | ???????????????????????????# = ####### | +----------------------------------------------------+ Best States ------------- Heat Dissipation 31 Energy Generation 26 Energy Capacity 475 Matter Stores 300 Matter Capacity 300 Sight Range 18 Terrain Scan Density 10 Evasion (%) 40 Recoil Reduction 1 Item Schematics ----------------- None Robot Schematics ------------------ None Fabricated ------------ Nothing Alien Tech Used ----------------- None Achievements -------------- Tank Challenges ------------ None Game ------ Seed MeleeZioniteShockpuncher Manual? 0 Play Time 00:26:16 Cumulative 9.7 hours Start 2023.03.03 @ 17:42:55 End 2023.03.05 @ 17:50:34 Sessions 2 Manual Loads 0 Difficulty Rogue Special Mode None Game No. 16 Rogue 11 Adventurer 5 Explorer 0 Win Type - Total 0 Types 0/0/0/0/0/0/0/0/0 Lore% 13 Gallery% 12 Achievement% 11 Wizard Run 0 Options --------- ASCII 0 Keyboard 0 Movement Numpad Keybinds 0 Fullscreen 1 Font 18/SmallcapsGlow Map View 76x50 Tactical HUD 1 Map Filters NONE Filters NONE Steam 1 RUN: cf9db415-bb95-4000-8414-e4faa428ed7c